[Event "Late-Titled-Tuesday-Blitz-June-04-2024"]
[Site "Chess.com"]
[Date "2024.06.04"]
[Round "2"]
[White "ChessFanNM"]
[Black "tactic"]
[Result "0-1"]
[WhiteElo "2256"]
[BlackElo "2577"]
[TimeControl "180+1"]
[EndTime "14:18:47 PDT"]
[Termination "tactic won on time"]

1. Nf3 {[%clk 0:03:00]} 1... d5 {[%clk 0:02:59.9]} 2. e3 {[%clk 0:02:59.6]} 2...
Nf6 {[%clk 0:03:00.8]} 3. c4 {[%clk 0:02:59.7]} 3... c6 {[%clk 0:02:59.6]} 4.
Nc3 {[%clk 0:02:59.3]} 4... g6 {[%clk 0:03:00.3]} 5. d4 {[%clk 0:02:54.7]} 5...
Bg7 {[%clk 0:03:00.9]} 6. Ne5 {[%clk 0:02:53.8]} 6... O-O {[%clk 0:03:01.4]} 7.
Bd3 {[%clk 0:02:52.9]} 7... Nbd7 {[%clk 0:03:00.9]} 8. f4 {[%clk 0:02:49.9]}
8... c5 {[%clk 0:02:33.8]} 9. O-O {[%clk 0:02:37.8]} 9... cxd4 {[%clk
0:02:30.5]} 10. exd4 {[%clk 0:02:37.7]} 10... dxc4 {[%clk 0:02:31.1]} 11. Bxc4
{[%clk 0:02:34.6]} 11... Nb6 {[%clk 0:02:29.7]} 12. Bb3 {[%clk 0:02:33.2]} 12...
Nfd5 {[%clk 0:02:27.5]} 13. Ne4 {[%clk 0:02:26.8]} 13... Bf5 {[%clk 0:02:19.6]}
14. Ng3 {[%clk 0:02:23.1]} 14... Be6 {[%clk 0:02:06.3]} 15. Kh1 {[%clk
0:02:15.6]} 15... Nc7 {[%clk 0:02:01.8]} 16. Be3 {[%clk 0:02:04.5]} 16... Bxb3
{[%clk 0:01:56.5]} 17. axb3 {[%clk 0:01:59.4]} 17... Ncd5 {[%clk 0:01:50.3]} 18.
Bg1 {[%clk 0:01:57.6]} 18... e6 {[%clk 0:01:47.6]} 19. Rc1 {[%clk 0:01:45.2]}
19... Qh4 {[%clk 0:01:33.2]} 20. Qf3 {[%clk 0:01:38]} 20... Rac8 {[%clk
0:01:29.4]} 21. Rc5 {[%clk 0:01:24]} 21... Rcd8 {[%clk 0:00:57.2]} 22. Rfc1
{[%clk 0:01:23.1]} 22... Qxf4 {[%clk 0:00:51.3]} 23. Qxf4 {[%clk 0:01:18.1]}
23... Nxf4 {[%clk 0:00:52.2]} 24. Rc7 {[%clk 0:01:14.9]} 24... Bxe5 {[%clk
0:00:34.8]} 25. dxe5 {[%clk 0:01:12.7]} 25... Nd3 {[%clk 0:00:35.2]} 26. Rf1
{[%clk 0:00:57.7]} 26... Nxe5 {[%clk 0:00:27.3]} 27. Rxb7 {[%clk 0:00:57.4]}
27... Rd7 {[%clk 0:00:24.9]} 28. Rxd7 {[%clk 0:00:48.7]} 28... Nexd7 {[%clk
0:00:25.8]} 29. Ne4 {[%clk 0:00:46.8]} 29... Rc8 {[%clk 0:00:24.5]} 30. Bd4
{[%clk 0:00:44.4]} 30... e5 {[%clk 0:00:22.4]} 31. Bc3 {[%clk 0:00:35.7]} 31...
f5 {[%clk 0:00:20.8]} 32. Nd6 {[%clk 0:00:23.7]} 32... Rc6 {[%clk 0:00:19.8]}
33. Nb5 {[%clk 0:00:23.4]} 33... a6 {[%clk 0:00:19]} 34. Na3 {[%clk 0:00:23.1]}
34... Nd5 {[%clk 0:00:18.7]} 35. Nc4 {[%clk 0:00:20.9]} 35... e4 {[%clk
0:00:15]} 36. Kg1 {[%clk 0:00:18.9]} 36... N7b6 {[%clk 0:00:13.9]} 37. Nxb6
{[%clk 0:00:17.5]} 37... Rxb6 {[%clk 0:00:12.9]} 38. Rd1 {[%clk 0:00:18.4]}
38... Nxc3 {[%clk 0:00:12.9]} 39. bxc3 {[%clk 0:00:17.4]} 39... Rxb3 {[%clk
0:00:13.5]} 40. Rc1 {[%clk 0:00:16.7]} 40... Rb2 {[%clk 0:00:12.2]} 41. c4
{[%clk 0:00:16.4]} 41... a5 {[%clk 0:00:11.7]} 42. c5 {[%clk 0:00:16.5]} 42...
Rb8 {[%clk 0:00:12.3]} 43. c6 {[%clk 0:00:16.5]} 43... Kf7 {[%clk 0:00:12.6]}
44. c7 {[%clk 0:00:15.9]} 44... Rc8 {[%clk 0:00:13.4]} 45. Kf2 {[%clk
0:00:15.5]} 45... Ke7 {[%clk 0:00:14.1]} 46. Ke3 {[%clk 0:00:15.1]} 46... Kd7
{[%clk 0:00:14.5]} 47. Rc5 {[%clk 0:00:14.4]} 47... a4 {[%clk 0:00:12.8]} 48.
Ra5 {[%clk 0:00:13.7]} 48... Rxc7 {[%clk 0:00:13.1]} 49. Rxa4 {[%clk 0:00:14.1]}
49... Ke6 {[%clk 0:00:13.6]} 50. Ra5 {[%clk 0:00:13.7]} 50... Kf6 {[%clk
0:00:13.1]} 51. h4 {[%clk 0:00:13.2]} 51... h6 {[%clk 0:00:13.1]} 52. Kf4 {[%clk
0:00:11.7]} 52... g5+ {[%clk 0:00:12.9]} 53. hxg5+ {[%clk 0:00:11.9]} 53...
hxg5+ {[%clk 0:00:13.8]} 54. Kg3 {[%clk 0:00:11.9]} 54... Rc3+ {[%clk 0:00:14]}
55. Kf2 {[%clk 0:00:11.8]} 55... g4 {[%clk 0:00:13.4]} 56. Ra8 {[%clk
0:00:10.2]} 56... g3+ {[%clk 0:00:11.7]} 57. Ke2 {[%clk 0:00:09.8]} 57... Rc2+
{[%clk 0:00:12.1]} 58. Ke3 {[%clk 0:00:09.2]} 58... Rxg2 {[%clk 0:00:12.3]} 59.
Kf4 {[%clk 0:00:08.1]} 59... Rg1 {[%clk 0:00:10.8]} 60. Ra6+ {[%clk 0:00:07.5]}
60... Kg7 {[%clk 0:00:08.9]} 61. Kxf5 {[%clk 0:00:06.5]} 61... Rf1+ {[%clk
0:00:08.7]} 62. Kg5 {[%clk 0:00:05.4]} 62... g2 {[%clk 0:00:09.2]} 63. Ra7+
{[%clk 0:00:05.5]} 63... Rf7 {[%clk 0:00:08.7]} 64. Ra1 {[%clk 0:00:04]} 64...
Rf1 {[%clk 0:00:09.4]} 65. Ra7+ {[%clk 0:00:03.6]} 65... Kf8 {[%clk 0:00:10.2]}
66. Ra8+ {[%clk 0:00:03.1]} 66... Ke7 {[%clk 0:00:10.8]} 67. Ra7+ {[%clk
0:00:02.8]} 67... Kd6 {[%clk 0:00:11.2]} 68. Ra6+ {[%clk 0:00:02.8]} 68... Kc7
{[%clk 0:00:11.7]} 0-1

[Event "Late-Titled-Tuesday-Blitz-June-04-2024"]
[Site "Chess.com"]
[Date "2024.06.04"]
[Round "2"]
[White "Manukyan_Artak"]
[Black "Good_Knight_Kiss"]
[Result "0-1"]
[WhiteElo "2528"]
[BlackElo "2343"]
[TimeControl "180+1"]
[EndTime "14:18:52 PDT"]
[Termination "Good_Knight_Kiss won by checkmate"]

1. e4 {[%clk 0:02:51.9]} 1... c5 {[%clk 0:02:59.7]} 2. Nf3 {[%clk 0:02:51.5]}
2... d6 {[%clk 0:02:59.8]} 3. Bb5+ {[%clk 0:02:50.8]} 3... Nd7 {[%clk
0:02:59.2]} 4. O-O {[%clk 0:02:50.3]} 4... a6 {[%clk 0:02:59.2]} 5. Bd3 {[%clk
0:02:50]} 5... Ngf6 {[%clk 0:02:59]} 6. a4 {[%clk 0:02:47.7]} 6... b6 {[%clk
0:02:56.7]} 7. Re1 {[%clk 0:02:47.2]} 7... Bb7 {[%clk 0:02:56.9]} 8. c3 {[%clk
0:02:47.5]} 8... e5 {[%clk 0:02:50.6]} 9. Bc4 {[%clk 0:02:37.1]} 9... Be7 {[%clk
0:02:49.2]} 10. d3 {[%clk 0:02:20.4]} 10... O-O {[%clk 0:02:46.5]} 11. Nbd2
{[%clk 0:02:16.4]} 11... Qc7 {[%clk 0:02:36.2]} 12. Qb3 {[%clk 0:02:09.2]} 12...
h6 {[%clk 0:02:19.8]} 13. Nf1 {[%clk 0:02:03.6]} 13... Bc6 {[%clk 0:02:12.6]}
14. Ne3 {[%clk 0:02:02.7]} 14... g6 {[%clk 0:02:03.6]} 15. Nd5 {[%clk
0:01:58.9]} 15... Bxd5 {[%clk 0:02:01.3]} 16. exd5 {[%clk 0:01:59]} 16... Kh7
{[%clk 0:01:57]} 17. h3 {[%clk 0:01:50.9]} 17... Ng8 {[%clk 0:01:29.8]} 18. d4
{[%clk 0:01:47.4]} 18... Bf6 {[%clk 0:01:24.7]} 19. dxe5 {[%clk 0:01:46.8]}
19... Nxe5 {[%clk 0:01:24.5]} 20. Nxe5 {[%clk 0:01:46]} 20... Bxe5 {[%clk
0:01:24.7]} 21. f4 {[%clk 0:01:42.5]} 21... Bg7 {[%clk 0:01:23.4]} 22. f5 {[%clk
0:01:42.8]} 22... g5 {[%clk 0:01:19.3]} 23. h4 {[%clk 0:01:33.9]} 23... gxh4
{[%clk 0:01:16.3]} 24. Re4 {[%clk 0:01:25.9]} 24... Bf6 {[%clk 0:01:14.4]} 25.
Bf4 {[%clk 0:01:19.7]} 25... b5 {[%clk 0:01:04.3]} 26. Bf1 {[%clk 0:01:10.5]}
26... c4 {[%clk 0:01:03.4]} 27. Qc2 {[%clk 0:01:10.4]} 27... Qc5+ {[%clk
0:01:01.4]} 28. Kh1 {[%clk 0:00:56.1]} 28... Qxd5 {[%clk 0:00:53.8]} 29. Rd1
{[%clk 0:00:55.4]} 29... Qxf5 {[%clk 0:00:53.8]} 30. Bxd6 {[%clk 0:00:34.7]}
30... Rfe8 {[%clk 0:00:49.5]} 31. Re2 {[%clk 0:00:32.5]} 31... Qxc2 {[%clk
0:00:43.1]} 32. Rxc2 {[%clk 0:00:33.4]} 32... Rad8 {[%clk 0:00:38.2]} 33. Rcc1
{[%clk 0:00:30.9]} 33... Bg5 {[%clk 0:00:34.1]} 34. Ra1 {[%clk 0:00:29.2]} 34...
Nf6 {[%clk 0:00:32]} 35. axb5 {[%clk 0:00:27.7]} 35... Ne4 {[%clk 0:00:26.2]}
36. bxa6 {[%clk 0:00:24.1]} 36... Nf2+ {[%clk 0:00:25.8]} 37. Kg1 {[%clk
0:00:25]} 37... Nxd1 {[%clk 0:00:25.8]} 38. Rxd1 {[%clk 0:00:25.8]} 38... Re6
{[%clk 0:00:22.1]} 39. a7 {[%clk 0:00:18]} 39... Be3+ {[%clk 0:00:22.1]} 40. Kh1
{[%clk 0:00:18.3]} 40... Bxa7 {[%clk 0:00:21.8]} 41. Bxc4 {[%clk 0:00:18.9]}
41... Rexd6 {[%clk 0:00:21]} 42. Rxd6 {[%clk 0:00:17.5]} 42... Rxd6 {[%clk
0:00:20.9]} 43. Bxf7 {[%clk 0:00:18.4]} 43... Rd2 {[%clk 0:00:18.5]} 44. b4
{[%clk 0:00:17.7]} 44... Rc2 {[%clk 0:00:18.2]} 45. c4 {[%clk 0:00:15.4]} 45...
Rb2 {[%clk 0:00:17.2]} 46. b5 {[%clk 0:00:15.4]} 46... Kg7 {[%clk 0:00:15.5]}
47. Bd5 {[%clk 0:00:15]} 47... Kf6 {[%clk 0:00:11.1]} 48. Kh2 {[%clk 0:00:15.5]}
48... Kg5 {[%clk 0:00:10.5]} 49. Kh3 {[%clk 0:00:16.1]} 49... h5 {[%clk
0:00:08.9]} 50. Bf3 {[%clk 0:00:15.2]} 50... Rb3 {[%clk 0:00:08]} 51. Kh2 {[%clk
0:00:15]} 51... Rc3 {[%clk 0:00:07.6]} 52. Bd5 {[%clk 0:00:14.9]} 52... Bb8+
{[%clk 0:00:06.5]} 53. Kg1 {[%clk 0:00:14.6]} 53... Bc7 {[%clk 0:00:06.7]} 54.
Kf2 {[%clk 0:00:15]} 54... Bb6+ {[%clk 0:00:06.6]} 55. Ke2 {[%clk 0:00:15.1]}
55... Kf4 {[%clk 0:00:05.2]} 56. Kd2 {[%clk 0:00:15.4]} 56... Rg3 {[%clk
0:00:03.9]} 57. Kc2 {[%clk 0:00:14.5]} 57... h3 {[%clk 0:00:04.1]} 58. gxh3
{[%clk 0:00:13.5]} 58... Rxh3 {[%clk 0:00:04.5]} 59. c5 {[%clk 0:00:13.8]} 59...
Bxc5 {[%clk 0:00:04.3]} 60. Be6 {[%clk 0:00:13.9]} 60... Rg3 {[%clk 0:00:04.2]}
61. b6 {[%clk 0:00:12.6]} 61... Bxb6 {[%clk 0:00:04]} 62. Bd5 {[%clk 0:00:13.3]}
62... h4 {[%clk 0:00:04.3]} 63. Kd2 {[%clk 0:00:14]} 63... h3 {[%clk 0:00:04.6]}
64. Ke2 {[%clk 0:00:14.9]} 64... h2 {[%clk 0:00:04.6]} 65. Bh1 {[%clk
0:00:13.7]} 65... Rg1 {[%clk 0:00:04.6]} 66. Bd5 {[%clk 0:00:14.5]} 66... h1=Q
{[%clk 0:00:05]} 67. Bxh1 {[%clk 0:00:15.4]} 67... Rxh1 {[%clk 0:00:05.7]} 68.
Kd3 {[%clk 0:00:15.8]} 68... Rh5 {[%clk 0:00:05.5]} 69. Kc4 {[%clk 0:00:16.7]}
69... Bg1 {[%clk 0:00:05.1]} 70. Kb3 {[%clk 0:00:17.6]} 70... Rc5 {[%clk
0:00:05]} 71. Kb4 {[%clk 0:00:17.8]} 71... Ke4 {[%clk 0:00:05.4]} 72. Kb3 {[%clk
0:00:18.2]} 72... Kd4 {[%clk 0:00:05.1]} 73. Kb2 {[%clk 0:00:18.5]} 73... Bh2
{[%clk 0:00:05.2]} 74. Ka3 {[%clk 0:00:19.4]} 74... Rb5 {[%clk 0:00:05.2]} 75.
Ka4 {[%clk 0:00:19.8]} 75... Kc4 {[%clk 0:00:05.4]} 76. Ka3 {[%clk 0:00:20.7]}
76... Rb4 {[%clk 0:00:05.7]} 77. Ka2 {[%clk 0:00:20.6]} 77... Rb3 {[%clk
0:00:06.2]} 78. Ka1 {[%clk 0:00:20.6]} 78... Kc3 {[%clk 0:00:06.6]} 79. Ka2
{[%clk 0:00:21.5]} 79... Kc2 {[%clk 0:00:07.1]} 80. Ka1 {[%clk 0:00:21.8]} 80...
Ra3# {[%clk 0:00:06.7]} 0-1

[Event "Late-Titled-Tuesday-Blitz-June-04-2024"]
[Site "Chess.com"]
[Date "2024.06.04"]
[Round "2"]
[White "artin10862"]
[Black "Der_Honigdachs"]
[Result "0-1"]
[WhiteElo "2950"]
[BlackElo "2527"]
[TimeControl "180+1"]
[EndTime "14:18:55 PDT"]
[Termination "Der_Honigdachs won by resignation"]

1. Nf3 {[%clk 0:02:29.2]} 1... Nf6 {[%clk 0:02:52.9]} 2. g3 {[%clk 0:02:29]}
2... d5 {[%clk 0:02:48.6]} 3. Bg2 {[%clk 0:02:28.8]} 3... e6 {[%clk 0:02:48.3]}
4. O-O {[%clk 0:02:26.7]} 4... Be7 {[%clk 0:02:48.9]} 5. c4 {[%clk 0:02:24.7]}
5... O-O {[%clk 0:02:48.4]} 6. b3 {[%clk 0:02:25.2]} 6... c5 {[%clk 0:02:45.6]}
7. cxd5 {[%clk 0:02:23]} 7... Nxd5 {[%clk 0:02:42.1]} 8. Bb2 {[%clk 0:02:20.9]}
8... Nc6 {[%clk 0:02:41.8]} 9. Nc3 {[%clk 0:02:16.8]} 9... Bf6 {[%clk
0:02:37.5]} 10. Qc2 {[%clk 0:02:12.6]} 10... b6 {[%clk 0:02:27.4]} 11. Nxd5
{[%clk 0:02:09]} 11... exd5 {[%clk 0:02:26.8]} 12. d4 {[%clk 0:02:08.9]} 12...
Nb4 {[%clk 0:02:18.1]} 13. Qd2 {[%clk 0:01:54.9]} 13... Be6 {[%clk 0:01:51.8]}
14. dxc5 {[%clk 0:01:50.4]} 14... Bxb2 {[%clk 0:01:51.1]} 15. Qxb2 {[%clk
0:01:50.1]} 15... bxc5 {[%clk 0:01:51.2]} 16. Rac1 {[%clk 0:01:50]} 16... Qb6
{[%clk 0:01:48.2]} 17. Rfd1 {[%clk 0:01:40.2]} 17... h6 {[%clk 0:01:43.6]} 18.
Ne5 {[%clk 0:01:36.6]} 18... Rfd8 {[%clk 0:01:37]} 19. Rd2 {[%clk 0:01:33.1]}
19... Rac8 {[%clk 0:01:35.6]} 20. a3 {[%clk 0:01:26.9]} 20... Nc6 {[%clk
0:01:33.4]} 21. Nxc6 {[%clk 0:01:18.9]} 21... Qxc6 {[%clk 0:01:28.1]} 22. b4
{[%clk 0:01:03.6]} 22... c4 {[%clk 0:01:14.1]} 23. Qd4 {[%clk 0:00:59.4]} 23...
Qa4 {[%clk 0:01:10.6]} 24. Rc3 {[%clk 0:00:51.8]} 24... a5 {[%clk 0:01:10.2]}
25. Rb2 {[%clk 0:00:45.1]} 25... axb4 {[%clk 0:01:09.6]} 26. Rxb4 {[%clk
0:00:46]} 26... Qa6 {[%clk 0:01:02.6]} 27. Bf3 {[%clk 0:00:37.1]} 27... Qa5
{[%clk 0:00:38.5]} 28. Kg2 {[%clk 0:00:32.5]} 28... Rb8 {[%clk 0:00:37.1]} 29.
Rxb8 {[%clk 0:00:17]} 29... Rxb8 {[%clk 0:00:38]} 30. e4 {[%clk 0:00:14.6]}
30... dxe4 {[%clk 0:00:37.3]} 31. Bxe4 {[%clk 0:00:15.1]} 31... Rb3 {[%clk
0:00:34.1]} 32. Qd6 {[%clk 0:00:07.5]} 32... Qb6 {[%clk 0:00:22.9]} 33. Qxb6
{[%clk 0:00:05.1]} 33... Rxb6 {[%clk 0:00:23.8]} 34. Bc2 {[%clk 0:00:05.8]}
34... Ra6 {[%clk 0:00:23.3]} 35. Kf3 {[%clk 0:00:06.1]} 35... Kf8 {[%clk
0:00:21.9]} 36. Ke3 {[%clk 0:00:06.7]} 36... Ke7 {[%clk 0:00:22.5]} 37. Kd4
{[%clk 0:00:07.4]} 37... Kd6 {[%clk 0:00:23]} 38. Bd1 {[%clk 0:00:07.9]} 38...
g5 {[%clk 0:00:21.4]} 39. Bf3 {[%clk 0:00:07]} 39... Ra4 {[%clk 0:00:21.5]} 40.
Bd1 {[%clk 0:00:07.1]} 40... Ra5 {[%clk 0:00:21.7]} 41. Ke3 {[%clk 0:00:07.1]}
41... Rd5 {[%clk 0:00:21.2]} 42. Be2 {[%clk 0:00:06.1]} 42... Re5+ {[%clk
0:00:21.7]} 43. Kd2 {[%clk 0:00:06.5]} 43... Rc5 {[%clk 0:00:22.1]} 44. Kc1
{[%clk 0:00:06.8]} 44... Kd5 {[%clk 0:00:22.4]} 45. Kd2 {[%clk 0:00:06.1]} 45...
Kd4 {[%clk 0:00:22]} 46. Bd1 {[%clk 0:00:06.6]} 46... Ra5 {[%clk 0:00:22]} 47.
Re3 {[%clk 0:00:06.8]} 47... Rc5 {[%clk 0:00:21]} 48. Rc3 {[%clk 0:00:07.1]}
48... Ra5 {[%clk 0:00:21.4]} 49. Be2 {[%clk 0:00:07.5]} 49... Rb5 {[%clk
0:00:20.9]} 50. Rc2 {[%clk 0:00:04.2]} 50... Rb3 {[%clk 0:00:19.2]} 51. a4
{[%clk 0:00:04.6]} 51... Ra3 {[%clk 0:00:18.9]} 52. Bd1 {[%clk 0:00:04.9]} 52...
c3+ {[%clk 0:00:19.2]} 53. Ke1 {[%clk 0:00:04.7]} 53... Ra1 {[%clk 0:00:19.4]}
54. Ke2 {[%clk 0:00:03.1]} 54... Bb3 {[%clk 0:00:19.1]} 55. Rd2+ {[%clk
0:00:02.5]} 55... cxd2 {[%clk 0:00:19.4]} 56. Bxb3 {[%clk 0:00:03.2]} 56... Kc3
{[%clk 0:00:20]} 57. Bd1 {[%clk 0:00:03.4]} 57... Ra3 {[%clk 0:00:19.4]} 58. h3
{[%clk 0:00:03.2]} 58... f5 {[%clk 0:00:19.9]} 59. h4 {[%clk 0:00:03.3]} 59...
f4 {[%clk 0:00:19.9]} 60. hxg5 {[%clk 0:00:02.5]} 60... hxg5 {[%clk 0:00:20.8]}
61. gxf4 {[%clk 0:00:03.2]} 61... gxf4 {[%clk 0:00:21.7]} 62. Kf3 {[%clk
0:00:03.9]} 62... Kb2+ {[%clk 0:00:21.6]} 63. Kxf4 {[%clk 0:00:04.4]} 63... Kc1
{[%clk 0:00:22.5]} 64. Bh5 {[%clk 0:00:04.4]} 64... Rxa4+ {[%clk 0:00:21.5]} 65.
Ke3 {[%clk 0:00:04.5]} 65... Ra5 {[%clk 0:00:21.8]} 66. Bg4 {[%clk 0:00:04.7]}
66... Rg5 {[%clk 0:00:21.5]} 67. Bf3 {[%clk 0:00:05.1]} 67... Rf5 {[%clk
0:00:20.5]} 68. Bg4 {[%clk 0:00:05.3]} 68... Rf8 {[%clk 0:00:19.5]} 69. f4
{[%clk 0:00:05.5]} 69... d1=Q {[%clk 0:00:18.9]} 70. Bxd1 {[%clk 0:00:05.7]}
70... Kxd1 {[%clk 0:00:19.8]} 71. Ke4 {[%clk 0:00:06.2]} 71... Ke2 {[%clk
0:00:20.7]} 72. f5 {[%clk 0:00:06.7]} 72... Kf2 {[%clk 0:00:20]} 73. Ke5 {[%clk
0:00:06.9]} 73... Kg3 {[%clk 0:00:20.2]} 74. f6 {[%clk 0:00:05.9]} 74... Kg4
{[%clk 0:00:20.6]} 75. Ke6 {[%clk 0:00:06.7]} 75... Kg5 {[%clk 0:00:21.1]} 76.
Ke7 {[%clk 0:00:07]} 76... Rxf6 {[%clk 0:00:21.1]} 0-1

[Event "Late-Titled-Tuesday-Blitz-June-04-2024"]
[Site "Chess.com"]
[Date "2024.06.04"]
[Round "2"]
[White "2346PL"]
[Black "IlanSchnaider"]
[Result "1-0"]
[WhiteElo "2552"]
[BlackElo "2783"]
[TimeControl "180+1"]
[EndTime "14:18:58 PDT"]
[Termination "2346PL won by resignation"]

1. d4 {[%clk 0:02:56.2]} 1... Nf6 {[%clk 0:02:59]} 2. Bg5 {[%clk 0:02:55.8]}
2... c5 {[%clk 0:02:53.3]} 3. d5 {[%clk 0:02:55.2]} 3... e6 {[%clk 0:02:53.6]}
4. Nc3 {[%clk 0:02:49.6]} 4... d6 {[%clk 0:02:46.9]} 5. dxe6 {[%clk 0:02:43.7]}
5... Bxe6 {[%clk 0:02:46.7]} 6. e4 {[%clk 0:02:44.6]} 6... Nc6 {[%clk
0:02:46.4]} 7. Nf3 {[%clk 0:02:41.2]} 7... Be7 {[%clk 0:02:46.7]} 8. Bd3 {[%clk
0:02:36.6]} 8... O-O {[%clk 0:02:46.9]} 9. O-O {[%clk 0:02:35.9]} 9... Ne5
{[%clk 0:02:47.3]} 10. h3 {[%clk 0:02:32.6]} 10... h6 {[%clk 0:02:46.9]} 11. Bf4
{[%clk 0:02:29.7]} 11... Ng6 {[%clk 0:02:46]} 12. Bh2 {[%clk 0:02:24.7]} 12...
Qb6 {[%clk 0:02:46.1]} 13. Rb1 {[%clk 0:02:24.2]} 13... Nh5 {[%clk 0:02:45.5]}
14. Qd2 {[%clk 0:02:11]} 14... Bf6 {[%clk 0:02:39.8]} 15. g4 {[%clk 0:02:07.6]}
15... c4 {[%clk 0:02:09.1]} 16. Be2 {[%clk 0:02:04.7]} 16... Nh4 {[%clk
0:02:00.4]} 17. Nxh4 {[%clk 0:02:00.7]} 17... Bxh4 {[%clk 0:01:59.5]} 18. gxh5
{[%clk 0:02:00.2]} 18... Bxh3 {[%clk 0:02:00.2]} 19. Qf4 {[%clk 0:01:42]} 19...
Bxf1 {[%clk 0:01:53]} 20. Bxf1 {[%clk 0:01:40.7]} 20... Bg5 {[%clk 0:01:45.5]}
21. Qxd6 {[%clk 0:01:36.6]} 21... Qa5 {[%clk 0:01:20.9]} 22. Bxc4 {[%clk
0:01:30.5]} 22... Rad8 {[%clk 0:01:21.3]} 23. Qe5 {[%clk 0:01:26]} 23... Qb4
{[%clk 0:01:15.6]} 24. Bd3 {[%clk 0:01:21]} 24... Bf6 {[%clk 0:01:14.7]} 25. Nd5
{[%clk 0:01:12.4]} 25... Bxe5 {[%clk 0:00:56.3]} 26. Nxb4 {[%clk 0:01:12.3]}
26... Bxh2+ {[%clk 0:00:57.2]} 27. Kxh2 {[%clk 0:01:12.7]} 27... Rfe8 {[%clk
0:00:58.1]} 28. Nd5 {[%clk 0:01:08.6]} 28... Re5 {[%clk 0:00:58]} 29. Nf4 {[%clk
0:01:06.5]} 29... Rd4 {[%clk 0:00:52.7]} 30. f3 {[%clk 0:01:05.7]} 30... a5
{[%clk 0:00:48.4]} 31. Kg3 {[%clk 0:01:04.6]} 31... Rd6 {[%clk 0:00:43.8]} 32.
Kf2 {[%clk 0:01:03.4]} 32... Rf6 {[%clk 0:00:43]} 33. Ke3 {[%clk 0:01:03.7]}
33... b5 {[%clk 0:00:38.7]} 34. Rh1 {[%clk 0:00:59.1]} 34... b4 {[%clk
0:00:35.3]} 35. Nd5 {[%clk 0:00:58.1]} 35... Rfe6 {[%clk 0:00:35.9]} 36. Kd4
{[%clk 0:00:57.7]} 36... Rg5 {[%clk 0:00:28.5]} 37. f4 {[%clk 0:00:51]} 37...
Rg2 {[%clk 0:00:24]} 38. f5 {[%clk 0:00:49.9]} 38... Re8 {[%clk 0:00:24.6]} 39.
f6 {[%clk 0:00:48.1]} 39... Rd8 {[%clk 0:00:20.6]} 40. fxg7 {[%clk 0:00:43.4]}
40... Kxg7 {[%clk 0:00:21.5]} 41. Ke3 {[%clk 0:00:40.1]} 41... Rg3+ {[%clk
0:00:20.5]} 42. Kf4 {[%clk 0:00:40.1]} 42... Rg5 {[%clk 0:00:21.1]} 43. Be2
{[%clk 0:00:36.9]} 43... Re8 {[%clk 0:00:19.7]} 44. Bf3 {[%clk 0:00:37.2]} 44...
Ree5 {[%clk 0:00:18.4]} 45. Ne3 {[%clk 0:00:34.4]} 45... Rc5 {[%clk 0:00:16.5]}
46. Rd1 {[%clk 0:00:31.6]} 46... a4 {[%clk 0:00:13.6]} 47. Rd4 {[%clk
0:00:31.2]} 47... Rb5 {[%clk 0:00:08.7]} 48. Rd7 {[%clk 0:00:30.5]} 48... b3
{[%clk 0:00:06.2]} 49. axb3 {[%clk 0:00:30]} 49... axb3 {[%clk 0:00:07.1]} 50.
c4 {[%clk 0:00:30.6]} 50... Ra5 {[%clk 0:00:06.7]} 51. Rb7 {[%clk 0:00:27.1]}
51... Ra1 {[%clk 0:00:03.2]} 52. Rxb3 {[%clk 0:00:26.6]} 52... Rag1 {[%clk
0:00:02.8]} 53. Nf5+ {[%clk 0:00:25.7]} 53... Kg8 {[%clk 0:00:01.7]} 54. Nxh6+
{[%clk 0:00:24.6]} 54... Kf8 {[%clk 0:00:02.2]} 55. Nf5 {[%clk 0:00:22.6]} 55...
Ke8 {[%clk 0:00:02.3]} 56. h6 {[%clk 0:00:21.6]} 56... Rg6 {[%clk 0:00:02.1]}
57. h7 {[%clk 0:00:19.9]} 57... Kd7 {[%clk 0:00:01.3]} 58. h8=Q {[%clk
0:00:19.4]} 58... R1g5 {[%clk 0:00:01.3]} 59. Qd4+ {[%clk 0:00:18.3]} 59... Kc7
{[%clk 0:00:01.7]} 60. Qc5+ {[%clk 0:00:18.4]} 60... Rc6 {[%clk 0:00:01.7]} 61.
Qxc6+ {[%clk 0:00:17.3]} 61... Kxc6 {[%clk 0:00:02]} 62. Kxg5 {[%clk 0:00:18.2]}
62... f6+ {[%clk 0:00:02.7]} 63. Kxf6 {[%clk 0:00:17.7]} 63... Kc5 {[%clk
0:00:03.6]} 64. Rb8 {[%clk 0:00:16.7]} 64... Kc6 {[%clk 0:00:03.6]} 65. Rc8+
{[%clk 0:00:16.7]} 65... Kd7 {[%clk 0:00:03.2]} 66. Ra8 {[%clk 0:00:15.8]} 66...
Kc6 {[%clk 0:00:03.2]} 67. e5+ {[%clk 0:00:16.3]} 67... Kb6 {[%clk 0:00:03.3]}
68. e6 {[%clk 0:00:16.5]} 68... Kc5 {[%clk 0:00:02.2]} 69. e7 {[%clk 0:00:16.8]}
69... Kb4 {[%clk 0:00:01.6]} 70. e8=Q {[%clk 0:00:16.7]} 70... Kb3 {[%clk
0:00:02.5]} 71. Qb5+ {[%clk 0:00:16.6]} 71... Kc2 {[%clk 0:00:02.9]} 72. Ra3
{[%clk 0:00:15.2]} 72... Kc1 {[%clk 0:00:01.7]} 73. b4 {[%clk 0:00:14.5]} 73...
Kd2 {[%clk 0:00:01.8]} 74. Qa4 {[%clk 0:00:13.3]} 74... Ke1 {[%clk 0:00:01.8]}
75. Ra2 {[%clk 0:00:11.3]} 1-0